Cogmind - Beta 17.1 @@@ ROGUE MODE // 2026.08.29 @ 00:26:56 Player: Finn Result: Destroyed by B7-TIE(R) with Subdweller Machine Gun Performance ------------- Evolutions (0) 0 Regions Visited (2) 400 Robots Destroyed (16) 80 Value Destroyed (443) 443 Prototype IDs (0) 0 Alien Tech Used (0) 0 Bonus (0) 0 TOTAL SCORE: 923 Bonus ------- None Cogmind --------- Core Integrity 0/250 Matter 0/300 Energy 100/100 System Corruption 0% Temperature Cool (0) Movement Flying (120) Ox1 Location -10/Subcaves Parts ------- > --- POWER (1) -------- (None) > --- PROPULSION (2) --- Flight Unit > --- UTILITY (2) ------ Terrain Scanner > --- WEAPON (2) ------- Barrage Gun Grenade Launcher > --- INVENTORY (5) ---- Wheel Compact Wheel Scrap Shield Fragment (46) Peak State ------------ > --- POWER ------------ Ion Engine > --- PROPULSION ------- Wheel Wheel > --- UTILITY ---------- Terrain Scanner > --- WEAPON ----------- Light Assault Rifle Grenade Launcher > --- INVENTORY -------- Wheel Compact Wheel Flight Unit Light Assault Rifle Mining Laser [Rating: 6] Favorites ----------- Power Ion Engine Engine Ion Engine Propulsion Wheel Wheel Wheel Flight Unit Flight Unit Utility Terrain Scanner Device Terrain Scanner Weapon Light Assault Rifle Ballistic Gun Light Assault Rifle Launcher Grenade Launcher Special Weapon Mining Laser Build | -11 -10 -10 ------- Run | Yrd Mat Sub Slots Evolved . | . . . Power . | . . . Propulsion . | . . . Utility . | . . . Weapon . | . . . Parts Attached 12 | 5 4 3 Power 1 | 1 . . Engine 1 | 1 . . Core . | . . . Reactor . | . . . Propulsion 5 | 2 2 1 Treads . | . . . Leg . | . . . Wheel 4 | 2 2 . Hover . | . . . Flight 1 | . . 1 Utility 1 | . 1 . Device 1 | . 1 . Storage . | . . . Processor . | . . . Hackware . | . . . Protection . | . . . Artifact . | . . . Weapon 5 | 2 1 2 Energy Gun . | . . . Energy Cannon . | . . . Ballistic Gun 3 | 2 . 1 Ballistic Cannon . | . . . Launcher 1 | . 1 . Special Weapon 1 | . . 1 Impact Weapon . | . . . Slashing Weapon . | . . . Piercing Weapon . | . . . Special Melee Weapon . | . . . Unidentified Prototypes . | . . . Parts Lost 6 | . 1 5 Power 1 | . . 1 Propulsion 3 | . 1 2 Utility . | . . . Weapon 2 | . . 2 Highest Loss Streak 5 | . 1 5 To Critical Strikes . | . . . Average Backups 2 | . 2 3 Power . | . . . Propulsion 1 | . 1 2 Utility . | . . . Weapon 1 | . 1 1 Tool/Special . | . . . Unused Backups 1 | . . 1 Power . | . . . Propulsion 1 | . . 1 Utility . | . . . Weapon . | . . . Tool/Special . | . . . Average Slot Usage (%) 66 | . 70 57 Engine 11 | . 14 5 Wheel 20 | . 25 8 Flight 2 | . . 8 Device 5 | . 2 14 Ballistic Gun 15 | . 16 13 Launcher 8 | . 11 2 Special Weapon 1 | . . 5 Peak Build Rating 6 | 5 6 6 Average Rating 5 | 3 5 5 On Entrance 3 | . 5 6 Avg Prop Armor Cover (%) . | . . . Naked Turns . | . . . Heaviest Build 10 | 7 10 10 Greatest Support 20 | 20 20 20 Greatest Overweight (x) 1 | . . 1 Average Overweight (x) . | . . . Largest Inventory Capacity 5 | 5 5 5 Average Capacity 5 | 5 5 5 Most Carried 5 | 3 5 5 Average Carried 3 | . 2 4 Final Capacity 5 | 5 5 5 Final Carried 5 | . 5 3 Class Distribution -------------------- 100% | Mutant Dominant Class ---------------- Mutant | -10/Materials Mutant | -10/Subcaves Resources | -11 -10 -10 ----------- Run | Yrd Mat Sub Matter Collected 241 | 140 37 64 Remotely . | . . . Salvage Created 278 | . 214 64 Parts 24 | . 20 4 Haulers Intercepted . | . . . Recyclers Shooed 1 | . 1 . Parts Field Recycled . | . . . Retrieved Matter . | . . . Parts Self-Destructed 2 | . . 2 Prevented . | . . . Parts Restored . | . . . Kills | -11 -10 -10 ------- Run | Yrd Mat Sub Combat Hostiles Destroyed 11 | . 9 2 Guns 1 | . 1 . Cannons 2 | . . 2 AOE 8 | . 8 . Classes Destroyed 6 | . 5 1 Worker 2 | . 2 . Builder 1 | . 1 . Watcher 2 | . 2 . Swarmer 3 | . 3 . Grunt 6 | . 6 . Subdweller 2 | . . 2 Best Kill Streak 8 | . 8 1 Combat Bots Only 6 | . 6 1 Max Kills in Single Turn 4 | . 4 1 Gunslinging . | . . . Exploded 3 | . 3 . Melee . | . . . Uniques/NPCs Destroyed . | . . . Combat | -11 -10 -10 -------- Run | Yrd Mat Sub Hostile Shots Fired 59 | . 35 24 Missed 14 | . 7 7 Hits 45 | . 28 17 Projectile 45 | . 28 17 Critical Strikes 1 | . . 1 Damage Taken 728 | . 325 403 Core 258 | . 63 195 Absorbed by Shields . | . . . Core Remaining (%) 100 | 100 . . Volleys Fired 69 | . 35 34 Largest 2 | . 2 2 Hottest 120 | . 50 120 Shots Fired 97 | . 59 38 Gun 75 | . 46 29 Cannon . | . . . Launcher 13 | . 13 . Special 9 | . . 9 Kinetic 75 | . 46 29 Thermal 9 | . . 9 Explosive 13 | . 13 . Electromagnetic . | . . . Robot Hit Streak 13 | . 5 13 Robot Miss Streak 4 | . 4 1 Penetration Max . | . . . Secondary Targets . | . . . Shots Hit Robots 41 | . 23 18 Core Hits 31 | . 25 6 Critical Kills . | . . . Critical Parts Destroyed . | . . . Critical Strikes . | . . . Melee Attacks . | . . . Impact . | . . . Slashing . | . . . Piercing . | . . . Sneak Attacks . | . . . Combat Hostiles . | . . . Follow-up Attacks . | . . . Damage Inflicted 1412 | . 1240 172 Guns 316 | . 192 124 Cannons . | . . . Explosions 1025 | . 1025 . Melee . | . . . Ramming 23 | . 23 . Kinetic 316 | . 192 124 Thermal 412 | . 364 48 Explosive 661 | . 661 . Electromagnetic . | . . . Impact . | . . . Slashing . | . . . Piercing . | . . . Highest Corruption . | . . . Average Corruption . | . . . Corruption Purged . | . . . Corruption Blocked . | . . . Overload Shots . | . . . Overflow Damage 67 | . 67 . Projectiles . | . . . Explosions 67 | . 67 . Melee . | . . . Knockbacks . | . . . Impact . | . . . Kinetic . | . . . Secondary . | . . . Self-Inflicted Damage 40 | . 40 . Shots 2 | . 2 . Rammed 2 | . 2 . Targets Rammed 2 | . 2 . Kicked . | . . . Crushed . | . . . Highest Temperature 22 | . 22 . Average Temperature 7 | . 7 . Received Heat Transfer 201 | . 120 81 Siege Activations . | . . . Martial Activations . | . . . Shielding Activations . | . . . Robots Disrupted . | . . . Combat Hostiles . | . . . Robots Corrupted . | . . . Combat Hostiles . | . . . Parts Fried . | . . . Impact Corruptions . | . . . Robots Melted . | . . . Combat Hostiles . | . . . Parts Melted . | . . . Heat Transferred 300 | . 200 100 Parts Sabotaged . | . . . Parts Stolen . | . . . Parts Stripped . | . . . Power Chain Reactions . | . . . Alert | -11 -10 -10 ------- Run | Yrd Mat Sub Maximum Alert Level 1 | . 1 . Low Security (%) 51 | 100 49 . Level 1 48 | . 50 . Level 2 . | . . . Level 3 . | . . . Level 4 . | . . . Level 5 . | . . . High Security . | . . . Max Security . | . . . Peak Influence 253 | . 253 . Initial . | . . . Average 158 | . 167 . Influence Increases 438 | . 438 . Destroy 0b10 Robot/C 180 | . 180 . Destroy 0b10 Robot/NC 25 | . 25 . Destroy Leader 34 | . 34 . Successful Hack 2 | . 2 . Disable Machine 135 | . 135 . Destroy Structure 62 | . 62 . Influence Decreases 438 | . 262 176 Entered New Map 85 | . . 85 Time Decay 302 | . 252 50 Lost Part 51 | . 10 41 Squads Dispatched 2 | . 2 . Investigation 1 | . 1 . Extermination . | . . . Reinforcement 1 | . 1 . Assault . | . . . Garrison . | . . . Intercept . | . . . Searches Triggered . | . . . Construction Impeded . | . . . Haulers Reinforced . | . . . Active Scanning Responses . | . . . Cargo Convoy Interrupts . | . . . Stealth | -11 -10 -10 --------- Run | Yrd Mat Sub Distress Signals 2 | . 2 . Communications Jammed . | . . . Distress Signals . | . . . Times Spotted 23 | . 20 3 Peak Tracking Total 5 | . 5 1 Tactical Retreats . | . . . Traps | -11 -10 -10 ------- Run | Yrd Mat Sub Traps Triggered . | . . . Indirectly . | . . . Trap Hack Attempts . | . . . Triggered . | . . . Disarmed 4 | . 4 . Reprogrammed . | . . . Reused . | . . . Traps Extracted . | . . . Installed . | . . . Triggered . | . . . Machines | -11 -10 -10 ---------- Run | Yrd Mat Sub Machines Disabled 9 | . 9 . Max in Single Turn 4 | . 4 . Machines Repaired . | . . . Machines Dismantled . | . . . Machines Sabotaged . | . . . Overloaded Fab Kills . | . . . Hacking | -11 -10 -10 --------- Run | Yrd Mat Sub Machines Accessed 3 | . 3 . Terminals 3 | . 3 . Fabricators . | . . . Repair Stations . | . . . Recycling Units . | . . . Scanalyzers . | . . . Garrison Access . | . . . Total Hacks 5 | . 5 . Successful 5 | . 5 . Failed . | . . . Catastrophic . | . . . Database Lockouts . | . . . Manual . | . . . Terminals 5 | . 5 . Fabricators . | . . . Repair Stations . | . . . Recycling Units . | . . . Scanalyzers . | . . . Garrison Access . | . . . Terminal Hacks 5 | . 5 . Record 3 | . 3 . Locate Traps 1 | . 1 . Disarm Traps 1 | . 1 . Fabricator Hacks . | . . . Repair Station Hacks . | . . . Recycling Unit Hacks . | . . . Scanalyzer . | . . . Garrison Access Hacks . | . . . Unauthorized Hacks . | . . . Terminals . | . . . Fabricators . | . . . Repair Stations . | . . . Recycling Units . | . . . Scanalyzers . | . . . Garrison Access . | . . . Data Cores Recovered . | . . . Used . | . . . Hacking Detections 1 | . 1 . Full Trace Events 1 | . 1 . Feedback Events . | . . . Feedback Blocked . | . . . Robot Schematics Acquired . | . . . Robots Built . | . . . Authchips . | . . . Time . | . . . Total Robot Build Rating . | . . . Part Schematics Acquired . | . . . Parts Built . | . . . Authchips . | . . . Time . | . . . Total Part Build Rating . | . . . Part Studies Acquired . | . . . Parts Repaired . | . . . Time . | . . . Parts Recycled . | . . . Recycled Matter . | . . . Retrieved Matter . | . . . Retrieved Components . | . . . Parts Scanalyzed . | . . . Part Schematics Acquired . | . . . Parts Damaged . | . . . Bothacking | -11 -10 -10 ------------ Run | Yrd Mat Sub Used RIF Installer . | . . . Robots Hacked . | . . . Non-combat . | . . . Combat . | . . . Robot Hacks Applied . | . . . Relay Couplers Released . | . . . Fabnet Peak Effective % . | . . . Robots Rewired . | . . . Allies Hacked . | . . . Hacks Repelled . | . . . Allies | -11 -10 -10 -------- Run | Yrd Mat Sub Total Allies . | . . . Largest Group . | . . . Highest-Rated Group . | . . . Highest-Rated Ally . | . . . Total Orders . | . . . Ally Attacks . | . . . Total Damage . | . . . Kills . | . . . Allies Corrupted . | . . . Allies Melted . | . . . Intel | -11 -10 -10 ------- Run | Yrd Mat Sub Active Infowar (turns) 409 | . 112 297 Terrain 409 | . 112 297 Robot Analysis Total . | . . . Derelict Logs Recovered . | . . . Drone Launches . | . . . Drone Recoveries . | . . . Exploration | -11 -10 -10 ------------- Run | Yrd Mat Sub Turns Passed 1005 | 41 667 297 Spaces Moved 781 | 42 527 212 Core 12 | 7 . 5 Treads . | . . . Legs . | . . . Wheels 593 | 35 527 31 Hover . | . . . Flight 176 | . . 176 Fastest Speed 40 | 50 80 40 Average Speed 71 | 75 80 49 Slowest Speed 120 | 80 80 120 Overloaded Moves . | . . . Propulsion Burnouts . | . . . Robots Hopped . | . . . Potential Cave-ins . | . . . Cave-ins Triggered . | . . . Exploration Rate (%) 28 | 3 73 8 Regions Visited 2 Branch Regions 1 Pre-discovered Areas . | . . . Known Exits Taken . | . . . Unknown Exits Taken 2 | 1 1 . Scrap Searched . | . . . Spaces Dug . | . . . Terrain Destroyed 67 | . 67 . Melee . | . . . Projectile . | . . . AOE 67 | . 67 . Terrain Rammed . | . . . Walls Destroyed . | . . . Machines Disabled . | . . . Actions | -11 -10 -10 --------- Run | Yrd Mat Sub Total 1124 | 51 720 353 Wait 246 | . 147 99 Move 779 | 41 526 212 Hop . | . . . Pick Up 13 | 5 6 2 Fast Attach 1 | . 1 . Attach 10 | 5 1 4 Detach . | . . . Swap 3 | . 2 1 Drop 1 | . . 1 Fire 69 | . 35 34 Melee . | . . . Ram 2 | . 2 . Kick . | . . . Crush . | . . . Escape Stasis . | . . . Rewire . | . . . Trap . | . . . Miscellaneous . | . . . Route ------- -11/Scrapyard -10/Materials (discovered 5 exits: [*Mat x3] / [*Min] / [*Sub]) -10/Subcaves History --------- Turn | Location | Event 14 | -11/Scrapyard | Discovered new exit (range 16) 42 | -11/Scrapyard | Entered Materials 105 | -10/Materials | Discovered new exit (range 8) 152 | -10/Materials | Discovered new exit (range 9) 317 | -10/Materials | Build established: Mutant 507 | -10/Materials | Discovered new exit (range 16) 566 | -10/Materials | Discovered new exit (range 10) 698 | -10/Materials | Discovered new exit (range 10) 709 | -10/Materials | Entered Subcaves 710 | -10/Subcaves | Approached by a straggling Scientist 781 | -10/Subcaves | Core integrity fell below 50% 809 | -10/Subcaves | Core integrity fell below 20% 824 | -10/Subcaves | Shifting Twisted Machinery released Barrage Gun 843 | -10/Subcaves | Lost 5 parts (1p2n2w) 871 | -10/Subcaves | Shifting Twisted Machinery released Sub. Power Source 979 | -10/Subcaves | Shifting Twisted Machinery released Battle Rifle 1006 | -10/Subcaves | Destroyed by B7-TIE(R) with Subdweller Machine Gun Last Messages --------------- 00811_ Subatomizers dissect the Disposable Heat Sink. 00812_ Lgt. Assault Rifle destroyed. 00814_ KG-H4M(R) destroyed. 00818_ Acquired Scrap Shield Fragment. 00819_ Acquired 25 matter. 00820_ Acquired 39 matter. Barrage Gun falls loose from the Twisted Machinery. 00826_ Subatomizers dissect the Disposable Heat Sink. 00829_ Acquired Barrage Gun. 00831_ Dropped Mining Laser. Q4-463(c): "I think it's somewhere east of here" Sub. Power Source falls loose from the Twisted Machinery. Q4-463(c): "We're getting close, I can feel it." Battle Rifle falls loose from the Twisted Machinery. 00987_ Q4-463(c) destroyed. Map ----- +----------------------------------------------------+ | ?????????#?#?#????????#???????????????????????#??? | | ????????????#?#??#???????#???????????????????????? | | ????????#????????????????#??##????#??????????????? | | ?????#???????#####??#????#?#?????????????????????? | | ?############# ##???????????????????????#???????? | | ?# ## # # "#####?###?############??????????? | | ## = "### ### # ## ####???????? | | "# # ##"# # ! !! #???????? | | ## "##### ### #" ##??????? | | # "##"""" ### ### "# ### #### # ##?????? | | ## "# """"""### #########?#####??##### ##????? | | # ##" "" ## ##????????? ##???????## #????? | | ##""| ""#??##????? ????? ## #????? | | " " "" ####?#???????? ???#?? # #????? | | ###" "" ##???#????#??? "????? ## #????? | | ??# ##"" ##??#??????#??? ?? "?### # "##????? | | ??# ####"###?????????????????#""## ## ##????? | | ??#" #??###??????????????????##""# # ""#????? | | ??#"" #????#????????##?# ?????#""" ## " #????? | | ??#####????????##??###?#??????#"""# ### ##????? | | ??????????????????#?????#?????## ### ## #?????? | | ??????????????#?????????####### "#"# ## #?????? | | ????????#??????????????## """## # #?????? | | ????????????????????????# *%= ""## ### ##????? | | ?????????????#??????#??## ! # " # # #????? | | ???????????????????????# @ "" "### ## ##????? | | ???????????????????????#" R #?#### # ##?????? | | ???????????????????????###" " #??#######??????? | | ?????????????????????????# "" ##???#??????????? | | ?????????????????????#???## " #???????#???????? | | ??????????????????????????# " ##?????????????? | | ???????????????#?????????? "" ???#?????????? | | ???????????????????????#?? " """ ?????????????? | | ???????????????????????????? "" ##? ?????????????? | | ????????????????????#??????" " #??? ????????????? | | ????????????????????????????"[?#??#??????????????? | | ?????????????????????????????"?#?????????????????? | | ????????????????????? ?????? ????????????????????? | | ?????????????????????????????????????????????????? | | ?????????????????????????????????????????????????? | | ?????????????????????????????????????????????????? | | ?????????????????????????????????????????????????? | | ?????????????????????????????????????????????????? | | ?????????????????????????????????????????????????? | | ?????????????????????????????????????????????????? | | ?????????????????????????????????????????????????? | | ?????????????????????????????????????????????????? | | ?????????????????????????????????????????????????? | | ?????????????????????????????????????????????????? | | ?????????????????????????????????????????????????? | +----------------------------------------------------+ Best States ------------- Heat Dissipation 25 Energy Generation 10 Energy Capacity 250 Matter Stores 190 Matter Capacity 300 Sight Range 16 Terrain Scan Range 14 Terrain Scan Density 10 Evasion (%) 62 Item Schematics ----------------- None Robot Schematics ------------------ None Fabricated ------------ Nothing Repaired ---------- Nothing Studied --------- None Alien Tech Used ----------------- None Achievements -------------- None Challenges ------------ None Game ------ Seed ArchitectFluxDeconstructor Manual? 0 Play Time 00:10:48 Cumulative 18.7 hours Start 2026.08.29 @ 00:18:58 End 2026.08.29 @ 00:26:56 Sessions 1 Manual Loads 0 Difficulty Rogue Special Mode None Game No. 39 Rogue 22 Adventurer 15 Explorer 2 Win Type - Total 0 Types 0/0/0/0/0/0/0/0/0/0 Lore% 20 Gallery% 19 Achievement% 15 Wizard Run 0 Options --------- Layout 1 ASCII 0 Keyboard 0 Movement Mouse Keybinds 0 Fullscreen 1 Font 24/Smallcaps Map View 50x35 Zoom Use 0% Tactical HUD 1 Map Filters NONE Filters NONE Steam 1 RUN: ec259edc-92cf-42b5-bba0-efdb2f89d952